fUST/lending_fUST_20240106
["ID","MTS","AMOUNT","RATE_DAILY","PERIOD"]
[310346247,1704485438905,-268.84623799,0.0002,2]
[310346248,1704485438914,-852.21256595,0.0002,2]
[310346249,1704485438924,-178.345667,0.0002,2]
[310346250,1704485438933,-178.345667,0.0002,2]
[310346251,1704485438942,-326.37359106,0.00021,2]
[310346252,1704485438951,-166.666666,0.00021918,2]
[310346253,1704485438961,-156.60017086,0.00022,2]
[310346254,1704485438970,-166.666666,0.00022431,2]
[310346255,1704485438979,-166.666666,0.00022944,2]
[310346256,1704485438988,-218.08275266,0.00023288,2]
[310346257,1704485438997,-166.666666,0.00023456,2]
[310346258,1704485439006,-166.666666,0.00023969,2]
[310346259,1704485439016,-2430.28294508,0.00024,2]
[310346260,1704485439025,-1819.84465006,0.0002421,2]
[310346261,1704485439034,-39740.17203318,0.0002421,2]
[310346262,1704485439043,-166.666666,0.00024482,2]
[310346263,1704485439052,-154.82968734,0.00025,2]
[310346264,1704485439061,-3000.0,0.00025,2]
[310346265,1704485439070,-4705.82021629,0.00025,2]
[310346266,1704485439079,-613.26381082,0.00025,2]
[310346267,1704485439092,-200.0,0.00025479,2]
[310346268,1704485439101,-525.26594965,0.00026,2]
[310346269,1704485439111,-1105.01959643,0.00027196,2]
[310346270,1704485439120,-10818.23,0.00027397,3]
[310346271,1704485439131,-9015.19,0.00027397,3]
[310346272,1704485439141,-7512.66,0.00027397,3]
[310346273,1704485439151,-344.31973606,0.00028,2]
[310346274,1704485439161,-644.25097982,0.00028556,2]
[310346275,1704485439171,-1969.09909803,0.00028897,2]
[310346276,1704485439181,-151.0,0.00029424,2]
[310346277,1704485439190,-1051.11586886,0.0003,4]
[310346278,1704485439199,-4357.84008311,0.0003,2]
[310346279,1704485439210,-154.84515485,0.00030373,4]
[310346280,1704485439230,-155.11189304,0.00030373,4]
[310346281,1704485439239,-154.84515485,0.00030684,4]
[310346282,1704485439249,-6260.55,0.00030976,3]
[310346283,1704485439259,-553.25941224,0.00030986,4]
[310346284,1704485439269,-154.87609912,0.00030987,4]
[310346285,1704485439278,-154.87608368,0.00030987,4]
[310346286,1704485439288,-1238.07238046,0.00030995,4]
[310346287,1704485439298,-155.56212202,0.00030995,2]
[310346288,1704485439307,-198.48002752,0.00030995,4]
[310346289,1704485439318,-2198.03008909,0.00030995,4]
[310346290,1704485439327,-154.86062544,0.00030998,4]
[310346291,1704485439336,-3110.66176264,0.00030998,4]
[310346292,1704485439346,-2855.53248198,0.00030998,4]
[310346293,1704485439355,-1171.19863995,0.00030998,4]
[310346294,1704485439364,-4803.68452735,0.00030998,4]
[310346295,1704485439374,-11176.66168589,0.00031,4]
[310346296,1704485439383,-3207.83382699,0.00031,4]
[310346297,1704485439392,-177.0,0.00033642,2]
[310346298,1704485439402,-1969.09909803,0.00033897,2]
[310346299,1704485439411,-1000.0,0.00034,7]
[310346300,1704485439420,-2000.0,0.000345,2]
[310346301,1704485439431,-224.576902,0.00034521,2]
[310346302,1704485439440,-151.0,0.0003464,2]
[310346303,1704485439450,-7797.08454076,0.00035,4]
[310346304,1704485439460,-977.0,0.00035,4]
[310346305,1704485439469,-501.12992494,0.00035,7]
[310346306,1704485439478,-609.33083609,0.0003538,2]
[310346307,1704485439488,-292.02940971,0.00035384,2]
[310346308,1704485439497,-451.21999639,0.00035388,2]
[310346309,1704485439506,-234.0,0.00035452,2]
[310346310,1704485439516,-153.0,0.00035562,2]
[310346311,1704485439525,-170.1709713,0.00035616,7]
[310346312,1704485439534,-500.0,0.00035616,7]
[310346313,1704485439543,-631.37857786,0.00035616,7]
[310346314,1704485439553,-500.0,0.00035616,7]
[310346315,1704485439562,-519.91,0.00035616,7]
[310346316,1704485439571,-9158.31,0.00035616,3]
[310346317,1704485439580,-500.0,0.00035616,7]
[310346318,1704485439589,-500.0,0.00035616,7]
[310346319,1704485439599,-1661.86,0.00035616,7]
[310346320,1704485439609,-500.0,0.00035616,7]
[310346321,1704485439618,-1096.61,0.00035616,7]
[310346322,1704485439631,-575.68,0.00035616,7]
[310346323,1704485439642,-500.0,0.00035616,7]
[310346324,1704485439651,-525.3879161,0.00035616,2]
[310346325,1704485439660,-224.576902,0.00035798,2]
[310346326,1704485439669,-500.0,0.0003589,7]
[310346327,1704485439778,-500.0,0.0003589,7]
[310346328,1704485439789,-519.91,0.0003589,7]
[310346329,1704485439799,-9158.31,0.0003589,3]
[310346330,1704485439809,-500.0,0.0003589,7]
[310346331,1704485439818,-500.0,0.0003589,7]
[310346332,1704485439829,-1661.86,0.0003589,7]
[310346333,1704485439838,-500.0,0.0003589,7]
[310346334,1704485439848,-1096.61,0.0003589,7]
[310346335,1704485439857,-575.68,0.0003589,7]
[310346336,1704485439866,-500.0,0.0003589,7]
[310346337,1704485439879,-203.11612288,0.00036115,2]
[310346338,1704485439889,-500.0,0.00036164,7]
[310346339,1704485439899,-500.0,0.00036164,7]
[310346340,1704485439909,-519.91,0.00036164,7]
[310346341,1704485439918,-9158.31,0.00036164,3]
[310346342,1704485439928,-500.0,0.00036164,7]
[310346344,1704485439938,-500.0,0.00036164,7]
[310346346,1704485439947,-1661.86,0.00036164,7]
[310346348,1704485439956,-500.0,0.00036164,7]
[310346350,1704485439965,-1096.61,0.00036164,7]
[310346352,1704485439975,-575.68,0.00036164,7]
[310346353,1704485439984,-500.0,0.00036164,7]
[310346355,1704485439995,-887.60283698,0.00036215,2]
[310346356,1704485440004,-5697.46547383,0.00036215,2]
[310346357,1704485440013,-487.72326438,0.00036215,2]
[310346358,1704485440022,-470.92472874,0.00036437,4]
[310346359,1704485440031,-500.0,0.00036437,4]
[310346360,1704485440041,-500.0,0.00036437,4]
[310346361,1704485440051,-478.64141683,0.00036437,4]
[310346362,1704485440060,-217.54658742,0.00036437,4]
[310346363,1704485440069,-591.63828162,0.00036437,4]
[310346364,1704485440079,-238.13784662,0.00036437,4]
[310346365,1704485440088,-500.0,0.00036437,4]
[310346366,1704485440098,-500.0,0.00036437,4]
[310346367,1704485440108,-500.0,0.00036437,4]
[310346368,1704485440118,-500.0,0.00036437,4]
[310346369,1704485440130,-500.0,0.00036438,7]
[310346370,1704485440139,-306.7,0.00036438,7]
[310346371,1704485440149,-519.91,0.00036438,7]
[310346372,1704485440158,-9158.31,0.00036438,3]
[310346373,1704485440167,-500.0,0.00036438,7]
[310346374,1704485440177,-500.0,0.00036438,7]
[310346375,1704485440186,-1661.86,0.00036438,7]
[310346376,1704485440195,-500.0,0.00036438,7]
[310346377,1704485440208,-1096.61,0.00036438,7]
[310346378,1704485440218,-575.68,0.00036438,7]
[310346379,1704485440227,-338.91938706,0.00036438,7]
[310346380,1704485440237,-1271.86892421,0.00036458,2]
[310346381,1704485440247,-306.0,0.0003663,2]
[310346382,1704485440256,-153.0,0.0003663,2]
[310346383,1704485440266,-153.0,0.0003663,2]
[310346384,1704485440275,-153.0,0.0003663,2]
[310346385,1704485440285,-500.0,0.00036712,7]
[310346386,1704485440295,-519.91,0.00036712,7]
[310346387,1704485440304,-9158.31,0.00036712,3]
[310346388,1704485440313,-500.0,0.00036712,7]
[310346389,1704485440323,-500.0,0.00036712,7]
[310346390,1704485440332,-1661.86,0.00036712,7]
[310346391,1704485440341,-500.0,0.00036712,7]
[310346392,1704485440350,-1096.61,0.00036712,7]
[310346393,1704485440360,-575.68,0.00036712,7]
[310346394,1704485440370,-500.0,0.00036986,7]
[310346395,1704485440381,-519.91,0.00036986,7]
[310346396,1704485440390,-9158.31,0.00036986,3]
[310346397,1704485440400,-500.0,0.00036986,7]
[310346398,1704485440410,-500.0,0.00036986,7]
[310346399,1704485440419,-1661.86,0.00036986,7]
[310346400,1704485440428,-500.0,0.00036986,7]
[310346401,1704485440437,-1096.61,0.00036986,7]
[310346402,1704485440446,-575.68,0.00036986,7]
[310346403,1704485440456,-224.576902,0.00037075,2]
[310346404,1704485440465,-187.13002301,0.0003726,7]
[310346405,1704485440475,-519.91,0.0003726,7]
[310346406,1704485440484,-9158.31,0.0003726,3]
[310346407,1704485440494,-500.0,0.0003726,7]
[310346408,1704485440503,-500.0,0.0003726,7]
[310346409,1704485440512,-1661.86,0.0003726,7]
[310346410,1704485440522,-500.0,0.0003726,7]
[310346411,1704485440531,-1096.61,0.0003726,7]
[310346412,1704485440540,-575.68,0.0003726,7]
[310346413,1704485440549,-200.0,0.00037298,4]
[310346414,1704485440558,-27534.42206679,0.000373,2]
[310346415,1704485440567,-519.91,0.00037534,7]
[310346416,1704485440577,-9158.31,0.00037534,3]
[310346417,1704485440586,-500.0,0.00037534,7]
[310346418,1704485440596,-500.0,0.00037534,7]
[310346419,1704485440604,-1661.86,0.00037534,7]
[310346421,1704485440614,-500.0,0.00037534,7]
[310346422,1704485440624,-1096.61,0.00037534,7]
[310346423,1704485440633,-575.68,0.00037534,7]
[310346424,1704485440643,-300.0,0.000376,19]
[310346425,1704485440652,-519.91,0.00037808,7]
[310346426,1704485440661,-9158.31,0.00037808,3]
[310346428,1704485440671,-567.37479634,0.00037808,7]
[310346430,1704485440680,-500.0,0.00037808,7]
[310346432,1704485440689,-1661.86,0.00037808,7]
[310346433,1704485440698,-190.60679305,0.00037808,7]
[310346434,1704485440707,-1096.61,0.00037808,7]
[310346435,1704485440716,-575.68,0.00037808,7]
[310346436,1704485440725,-150.83408251,0.000379,2]
[310346437,1704485440734,-4003.11753,0.00037999,2]
[310346438,1704485440744,-5070.96382537,0.00038,7]
[310346439,1704485440753,-2203.54695096,0.00038,10]
[310346440,1704485440762,-519.91,0.00038082,7]
[310346441,1704485440771,-9158.31,0.00038082,3]
[310346442,1704485440780,-500.0,0.00038082,7]
[310346444,1704485440789,-1661.86,0.00038082,7]
[310346445,1704485440798,-1096.61,0.00038082,7]
[310346447,1704485440807,-575.68,0.00038082,7]
[310346448,1704485440816,-2000.0,0.0003823,30]
[310346449,1704485440825,-2000.0,0.0003823,15]
[310346450,1704485440834,-160.18794809,0.00038244,2]
[310346451,1704485440843,-224.576902,0.00038352,2]
[310346452,1704485440852,-500.0,0.00038356,2]
[310346453,1704485440861,-519.91,0.00038356,7]
[310346454,1704485440870,-9158.31,0.00038356,3]
[310346455,1704485440880,-500.0,0.00038356,7]
[310346456,1704485440888,-1661.86,0.00038356,7]
[310346457,1704485440897,-1096.61,0.00038356,7]
[310346458,1704485440907,-575.68,0.00038356,7]
[310346459,1704485440917,-301.66816502,0.00038537,4]
[310346460,1704485440926,-1678.27341084,0.0003863,7]
[310346461,1704485440935,-534.12087564,0.0003863,10]
[310346462,1704485440947,-160.22832645,0.0003863,7]
[310346463,1704485440959,-2441.77091735,0.0003863,7]
[310346464,1704485440970,-519.91,0.0003863,7]
[310346465,1704485440983,-9158.31,0.0003863,3]
[310346466,1704485440994,-500.0,0.0003863,7]
[310346467,1704485441006,-1661.86,0.0003863,7]
[310346468,1704485441017,-1096.61,0.0003863,7]
[310346469,1704485441028,-575.68,0.0003863,7]
[310346470,1704485441038,-153.0,0.00038712,2]
[310346471,1704485441048,-284.0,0.0003874,2]
[310346472,1704485441058,-1486.03685774,0.00038801,2]
[310346473,1704485441124,-358.74699857,0.00038801,2]
[310346474,1704485441135,-275.93315065,0.00038802,2]
[310346475,1704485441146,-1029.00208641,0.00038802,4]
[310346476,1704485441157,-205.60260279,0.00038802,4]
[310346477,1704485441168,-450.0,0.00038859,4]
[310346478,1704485441178,-15528.05810637,0.0003886,5]
[310346479,1704485441188,-1969.09909803,0.00038897,2]
[310346480,1704485441198,-500.0,0.00038904,7]
[310346481,1704485441211,-500.0,0.00038904,7]
[310346482,1704485441226,-519.91,0.00038904,7]
[310346483,1704485441237,-9158.31,0.00038904,3]
[310346484,1704485441248,-225.17605671,0.00038904,7]
[310346485,1704485441258,-1661.86,0.00038904,7]
[310346486,1704485441269,-1096.61,0.00038904,7]
[310346487,1704485441280,-575.68,0.00038904,7]
[310346488,1704485441291,-155.54585852,0.00039,4]
[310346489,1704485441302,-2032.89861869,0.00039,2]
[310346490,1704485441313,-1000.0,0.00039,39]
[310346491,1704485441324,-1131.98793715,0.00039,120]
[310346492,1704485441335,-4881.09440952,0.00039,10]
[310346493,1704485441346,-500.0,0.00039,5]
[310346494,1704485441358,-226.39641912,0.00039,2]
[310346495,1704485441368,-500.0,0.00039,7]
[310346496,1704485441378,-160.0,0.00039008,3]
[310346497,1704485441387,-553.417288,0.000391,20]
[310346498,1704485441397,-276.0,0.0003915,7]
[310346499,1704485441407,-154.0,0.0003915,60]
[310346500,1704485441419,-269.0,0.0003915,7]
[310346501,1704485441430,-276.0,0.0003916,7]
[310346502,1704485441442,-154.0,0.0003916,60]
[310346503,1704485441451,-269.0,0.0003916,7]
[310346504,1704485441462,-3663.35828487,0.0003917,60]
[310346505,1704485441477,-3652.98937975,0.0003917,60]
[310346506,1704485441490,-2378.65233538,0.0003917,60]
[310346507,1704485441500,-199.0,0.0003917,60]
[310346508,1704485441511,-276.0,0.0003917,7]
[310346509,1704485441521,-157.56,0.0003917,60]
[310346510,1704485441532,-13.11062455,0.0003917,60]
[310346511,1704485441545,-168.35937545,0.0003917,60]
[310346512,1704485441557,-154.0,0.0003917,60]
[310346513,1704485441568,-269.0,0.0003917,7]
[310346514,1704485441578,-500.0,0.00039178,7]
[310346515,1704485441589,-500.0,0.00039178,7]
[310346516,1704485441599,-519.91,0.00039178,7]
[310346517,1704485441610,-1672.01694197,0.00039178,3]
[310346518,1704485441625,-7486.29305803,0.00039178,3]
[310346519,1704485441636,-1661.86,0.00039178,7]
[310346520,1704485441647,-1096.61,0.00039178,7]
[310346521,1704485441658,-575.68,0.00039178,7]
[310346522,1704485441670,-9695.0,0.0003918,60]
[310346523,1704485441681,-199.0,0.0003918,60]
[310346524,1704485441691,-603.33633004,0.00039185,7]
[310346525,1704485441702,-6021.83061196,0.0003919,60]
[310346526,1704485441717,-3673.16938804,0.0003919,60]
[310346527,1704485441726,-199.0,0.0003919,60]
[310346528,1704485441737,-160.0,0.00039342,4]
[310346529,1704485441747,-382.41774546,0.0003945,4]
[310346530,1704485441887,-2821.86779594,0.0003945,4]
[310346531,1704485441901,-516.9300001,0.0003945,4]
[310346532,1704485441914,-1005.92319615,0.0003945,4]
[310346533,1704485441925,-500.71419149,0.00039452,7]
[310346534,1704485441935,-501.7199488,0.00039452,7]
[310346535,1704485441946,-519.91,0.00039452,7]
[310346536,1704485441956,-9158.31,0.00039452,3]
[310346537,1704485441966,-233.35981006,0.00039452,7]
[310346538,1704485441979,-1211.58738761,0.00039452,7]
[310346605,1704485446550,-931.94078201,0.00016397,2]
[310346616,1704486025123,200.0,0.00022985,7]
[310346617,1704486025903,280.0,0.00025283,7]
[310346699,1704486632680,-154.82968734,0.00017833,2]
[310346701,1704486632690,-239.58675213,0.00017833,2]
[310346704,1704486632701,-4847.58631331,0.00017833,2]
[310346706,1704486632712,-905.03162025,0.00017833,2]
[310346708,1704486632724,-30795.17858183,0.00017833,2]
[310346710,1704486632733,-466.32790841,0.00017834,2]
[310346712,1704486632743,-253.29346904,0.00017834,2]
[310346715,1704486632753,-469.16586191,0.00017834,2]
[310346718,1704486632763,-20841.25599026,0.00017834,2]
[310346721,1704486632773,-2098.19039752,0.00017834,2]
[310346724,1704486632783,-2068.23044035,0.00017834,2]
[310346727,1704486632792,-154.82968734,0.00017835,2]
[310346730,1704486632801,-154.82968734,0.00017835,2]
[310346733,1704486632810,-154.82968734,0.00017835,2]
[310346736,1704486632820,-360.34675522,0.00017835,2]
[310346739,1704486632829,-1219.67488443,0.00017835,2]
[310346776,1704486638775,-859.93471429,0.00017832,2]
[310346778,1704486638784,-935.67439236,0.00017832,2]
[310346780,1704486638795,-1697.13692382,0.00017832,2]
[310346782,1704486638804,-3563.75672667,0.00017835,2]
[310346784,1704486638814,-249.95281177,0.00017836,2]
[310346786,1704486638822,-7935.87115541,0.00017836,2]
[310346788,1704486638831,-3734.31028472,0.00017836,2]
[310346790,1704486638841,-1289.57612108,0.00017837,2]
[310346792,1704486638851,-975.04064545,0.0001784,2]
[310346794,1704486638860,-2091.01888054,0.00018,2]
[310346796,1704486638869,-176.221835,0.00019605,2]
[310346798,1704486638878,-3743.77,0.00019803,3]
[310346800,1704486638887,-5391.03,0.0001981,3]
[310346803,1704486638897,-4492.53,0.0001981,3]
[310346806,1704486638906,-5217.13,0.00019813,3]
[310346808,1704486638914,-9699.34153094,0.00019863,2]
[310346810,1704486638926,-1075.22109808,0.00019863,2]
[310346812,1704486638938,-14125.43737098,0.00019863,2]
[310346814,1704486638947,-2991.35420991,0.0002,2]
[310346816,1704486638957,-1193.86513992,0.0002,2]
[310346818,1704486638966,-268.84623799,0.0002,2]
[310346820,1704486638976,-227.88915323,0.0002,2]
[310346822,1704486638985,-852.63544921,0.0002,2]
[310346825,1704486638995,-203.11612288,0.00020762,2]
[310346826,1704486639005,-1238.07238046,0.00020893,2]
[310346828,1704486639014,-1171.19863995,0.00020893,2]
[310346830,1704486639023,-553.25941224,0.00020893,2]
[310346832,1704486639032,-2198.03008909,0.00020893,2]
[310346834,1704486639041,-155.56212202,0.00020893,2]
[310346837,1704486639050,-154.84515485,0.00020893,2]
[310346838,1704486639059,-198.48002752,0.00020893,2]
[310346841,1704486639068,-155.11189304,0.00020893,2]
[310346842,1704486639077,-154.87608368,0.00020893,2]
[310346844,1704486639086,-154.87609912,0.00020893,2]
[310346847,1704486639095,-154.84515485,0.00020893,2]
[310346849,1704486639105,-154.86062544,0.00020894,2]
[310346851,1704486639114,-1843.01511114,0.00020894,2]
[310346853,1704486639127,-2960.66941621,0.00020894,2]
[310346855,1704486639136,-170.1709713,0.00020978,2]
[310346857,1704486639145,-326.37359106,0.00021,2]
[310346859,1704486639155,-166.666666,0.00021918,2]
[310346861,1704486639164,-2855.53248198,0.00022,2]
[310346863,1704486639173,-166.666666,0.00022431,2]
[310346865,1704486639182,-166.666666,0.00022944,2]
[310346867,1704486639191,-166.666666,0.00023456,2]
[310346869,1704486639200,-166.666666,0.00023969,2]
[310346871,1704486639209,-166.666666,0.00024482,2]
[310346873,1704486639218,-155.64272024,0.00025,2]
[310346875,1704486639227,-613.26381082,0.00025,2]
[310346877,1704486639236,-180.32507635,0.00025283,2]
[310346879,1704486639248,-1639.51957371,0.00025283,2]
[310346881,1704486639257,-3385.202222,0.00027,2]
[310346883,1704486639266,-174.5135465,0.00030032,2]
[310346885,1704486639275,-4086.02331844,0.00031,4]
[310346887,1704486639286,-7090.63836845,0.00031,4]
[310346889,1704486639296,-1000.0,0.00034,7]
[310346891,1704486639305,-850.66964992,0.00034,4]
[310346893,1704486639314,-2000.0,0.000345,2]
[310346895,1704486639323,-224.576903,0.00034521,2]
[310346897,1704486639333,-177.0,0.00034674,2]
[310346899,1704486639342,-7797.08454076,0.00035,4]
[310346901,1704486639351,-977.0,0.00035,4]
[310346903,1704486639360,-373.88461295,0.00035402,2]
[310346905,1704486639369,-160.23626269,0.00035402,2]
[310346907,1704486639379,-946.80616953,0.00035402,2]
[310346909,1704486639388,-172.49576978,0.00035402,2]
[310346911,1704486639398,-234.0,0.00035452,2]
[310346913,1704486639407,-3119.81,0.00035606,3]
[310346915,1704486639417,-525.3879161,0.00035616,2]
[310346917,1704486639426,-500.0,0.00035616,7]
[310346919,1704486639436,-500.0,0.00035616,7]
[310346921,1704486639445,-500.0,0.00035616,7]
[310346923,1704486639454,-500.0,0.00035616,7]
[310346925,1704486639464,-500.0,0.00035616,7]
[310346927,1704486639473,-507.16,0.00035616,7]
[310346929,1704486639482,-8933.84,0.00035616,3]
[310346931,1704486639491,-500.0,0.00035616,7]
[310346933,1704486639501,-500.0,0.00035616,7]
[310346935,1704486639510,-1591.79,0.00035616,7]
[310346937,1704486639520,-1050.92,0.00035616,7]
[310346939,1704486639529,-0.13857119,0.00035616,7]
[310347186,1704486641836,-918.2180004,0.00017831,2]
[310347189,1704486641850,-27.18118772,0.00017831,2]
[310347191,1704486641859,-375.26081193,0.00017834,2]
[310347411,1704486643730,-2391.49717443,0.00017834,2]
[310347413,1704486643742,-103.39171072,0.00017834,2]
[310347428,1704486643844,-245.11019286,0.00035616,7]
[310347430,1704486643856,-306.44123595,0.00035616,7]
[310347432,1704486643866,-306.35506418,0.00035616,7]
[310347434,1704486643877,-193.64493582,0.00035616,7]
[310347436,1704486643887,-92.09485656,0.00035798,2]
[310347721,1704486646805,-466.32790841,0.00017833,2]
[310347723,1704486646815,-500.0,0.00035616,7]
[310347725,1704486646824,-132.48204644,0.00035798,2]
[310347727,1704486646833,-500.0,0.0003589,7]
[310347729,1704486646842,-500.0,0.0003589,7]
[310347731,1704486646852,-631.37857786,0.0003589,7]
[310347733,1704486646861,-500.0,0.0003589,7]
[310347735,1704486646870,-507.16,0.0003589,7]
[310347737,1704486646879,-8933.84,0.0003589,3]
[310347739,1704486646889,-500.0,0.0003589,7]
[310347741,1704486646898,-500.0,0.0003589,7]
[310347743,1704486646908,-1591.79,0.0003589,7]
[310347745,1704486646917,-1050.92,0.0003589,7]
[310347748,1704486646927,-551.69,0.0003589,7]
[310347750,1704486646936,-500.0,0.0003589,7]
[310347751,1704486646945,-500.0,0.0003589,7]
[310347754,1704486646955,-150.81901718,0.00035916,4]
[310347756,1704486646964,-500.0,0.00036164,7]
[310347758,1704486646973,-500.0,0.00036164,7]
[310347759,1704486646982,-500.0,0.00036164,7]
[310347761,1704486646991,-507.16,0.00036164,7]
[310347763,1704486647000,-4071.16634701,0.00036164,3]
[310348594,1704487757820,4798.33984539,0.00016079,2]
[310348615,1704487831890,-3400.98410988,0.00016073,2]
[310348616,1704487831902,-333.32617484,0.00016073,2]
[310348617,1704487831912,-941.47691686,0.00016074,2]
[310348670,1704487837986,-154.82968734,0.00016073,2]
[310348672,1704487837996,-1465.03320118,0.00016074,2]
[310348684,1704487838098,-226.30119814,0.00016074,2]
[310348686,1704487838108,-7935.87115541,0.00016074,2]
[310348688,1704487838117,-154.82968734,0.00016075,2]
[310348690,1704487838126,-1289.57612108,0.00016075,2]
[310348692,1704487838135,-945.39918812,0.00016076,2]
[310348693,1704487838145,-1255.90046767,0.00016076,2]
[310348808,1704487841035,-1094.96377047,0.00016076,2]
[310348818,1704487845965,-18490.39175212,0.00016076,2]
[310348819,1704487845975,-20101.66015461,0.00016079,2]
[310348820,1704487845985,-806.662028,0.00016459,2]
[310348821,1704487845995,-658.47497196,0.00017322,2]
[310348822,1704487846004,-2095.07763535,0.00017832,2]
[310348823,1704487846013,-2065.23052387,0.00017833,2]
[310348825,1704487846023,-2091.01888054,0.00018,2]
[310348827,1704487846032,-250.0,0.00018819,2]
[310348828,1704487846041,-174.513547,0.00019178,2]
[310348830,1704487846050,-231.909252,0.00019178,2]
[310348832,1704487846060,-852.63544921,0.0002,2]
[310348833,1704487846069,-154.82968734,0.0002,2]
[310348834,1704487846077,-268.84623799,0.0002,2]
[310348835,1704487846087,-166.666666,0.00021918,2]
[310348836,1704487846096,-3309.69145784,0.00025,2]
[310348875,1704488098871,1001.19827136,0.00025,7]
[310348896,1704488693233,-154.82968734,0.0001868,2]
[310348897,1704488693268,-154.82968734,0.0001868,2]
[310348898,1704488693300,-3256.23090707,0.0001868,2]
[310348899,1704488693335,-2705.78299771,0.0001868,2]
[310348900,1704488693368,-3734.31028472,0.00018681,2]
[310348901,1704488693401,-174.7326546,0.00018682,2]
[310348902,1704488693434,-2091.01888054,0.00018682,2]
[310348903,1704488693469,-2632.81131618,0.00018682,2]
[310348904,1704488693504,-20841.25599026,0.00018684,2]
[310348905,1704488693538,-473.32846209,0.00018685,2]
[310348906,1704488693574,-184.85176643,0.00018696,2]
[310348907,1704488693614,1289.57612108,0.00018679,2]
[310348911,1704488754805,203.85688046,0.00015071,2]
[310348914,1704488820083,-190.80461164,0.0001832,2]
[310348915,1704488820126,-451.29256206,0.00018321,2]
[310348916,1704488820178,-1452.27471254,0.00018322,2]
[310348917,1704488820220,-1125.68365157,0.00018323,2]
[310348918,1704488820264,-24900.0,0.00018324,2]
[310348972,1704488966301,-155.37984221,0.00016492,2]
[310348974,1704489012780,-3734.31028472,0.00016914,2]
[310348975,1704489012815,-974.23467953,0.00016915,2]
[310348976,1704489013568,20841.25599026,0.00016913,2]
[310348977,1704489014398,3827.77185463,0.00016492,2]
[310348978,1704489016325,342.0768725,0.00016492,2]
[310348981,1704489032394,1175.27405301,0.00016492,2]
[310348988,1704489034396,342.0768725,0.00016492,2]
[310349040,1704489035059,-512.58158862,0.00018231,2]
[310349042,1704489035070,-154.87609912,0.00018701,2]
[310349044,1704489035080,-10479.76281548,0.00018795,2]
[310349046,1704489035091,-1766.68967922,0.00018799,2]
[310349048,1704489035102,-294.04178672,0.00018897,2]
[310349050,1704489035112,-1415.64821812,0.000189,2]
[310349052,1704489035123,-176.221835,0.00019178,2]
[310349054,1704489035134,-268.84623799,0.0002,2]
[310349056,1704489035145,-852.63544921,0.00020091,2]
[310349058,1704489035156,-516.80166475,0.00020092,2]
[310349060,1704489035166,-323.79737193,0.00020093,2]
[310349062,1704489035182,-586.04748878,0.00020094,2]
[310349064,1704489035192,-154.87609912,0.00020094,2]
[310349066,1704489035201,-166.16362772,0.00020094,2]
[310349068,1704489035211,-154.87609912,0.00020094,2]
[310349069,1704489035222,-3078.74564907,0.00020095,2]
[310349071,1704489035232,-235.81465821,0.00020095,2]
[310349073,1704489035243,-1211.67379764,0.00020095,2]
[310349075,1704489035253,-1729.75591073,0.00020095,2]
[310349077,1704489035264,-191.71227882,0.00020095,2]
[310349079,1704489035275,-171.28143904,0.00020096,2]
[310349081,1704489035286,-997.49366015,0.00020096,2]
[310349083,1704489035296,-1427.11637316,0.00020096,2]
[310349085,1704489035307,-821.92981462,0.00020999,2]
[310349087,1704489035318,-12908.40592456,0.00020999,2]
[310349089,1704489035329,-232.31673852,0.00021,2]
[310349091,1704489035339,-7570.49397843,0.00021,2]
[310349093,1704489035353,-8159.99060719,0.00021,2]
[310349095,1704489035362,-1415.64821812,0.000239,2]
[310349097,1704489035372,-1421.75864439,0.0002399,2]
[310349099,1704489035391,-1661.42180684,0.0002399,2]
[310349101,1704489035401,-7990.53795958,0.00024998,2]
[310349103,1704489035412,-885.10151528,0.00024998,2]